[Event "*** Titled Tuesday Blitz"]
[Site "Chess.com"]
[Date "2020.04.07"]
[Round "6"]
[White "Aygehovit1992"]
[Black "CyberneticLion"]
[Result "0-1"]
[WhiteElo "2703"]
[BlackElo "2529"]
[TimeControl "180+1"]
[EndTime "14:05:58 PDT"]
[Termination "CyberneticLion won by resignation"]

1. e4 {[%clk 0:03:00.9]} 1... e5 {[%clk 0:02:57.9]} 2. Nf3 {[%clk 0:03:01.2]}
2... Nc6 {[%clk 0:02:57]} 3. Bb5 {[%clk 0:03:01.8]} 3... Nge7 {[%clk 0:02:56.3]}
4. Nc3 {[%clk 0:03:00.9]} 4... Ng6 {[%clk 0:02:52.5]} 5. h4 {[%clk 0:02:59.1]}
5... Nd4 {[%clk 0:02:35.7]} 6. h5 {[%clk 0:02:55.8]} 6... Nf4 {[%clk 0:02:06.5]}
7. g3 {[%clk 0:02:54.4]} 7... Nxf3+ {[%clk 0:01:57.1]} 8. Qxf3 {[%clk
0:02:53.8]} 8... Ne6 {[%clk 0:01:57.7]} 9. Bc4 {[%clk 0:02:52.5]} 9... Ng5
{[%clk 0:01:36.2]} 10. Qe2 {[%clk 0:02:52.1]} 10... c6 {[%clk 0:01:23.8]} 11. d3
{[%clk 0:02:51.3]} 11... Bb4 {[%clk 0:01:19.1]} 12. f4 {[%clk 0:02:50.6]} 12...
Ne6 {[%clk 0:01:13.2]} 13. fxe5 {[%clk 0:02:50.5]} 13... Qa5 {[%clk 0:01:12.2]}
14. Bd2 {[%clk 0:02:44.4]} 14... Qxe5 {[%clk 0:01:12.2]} 15. O-O-O {[%clk
0:02:43.3]} 15... b5 {[%clk 0:01:07.2]} 16. Bxe6 {[%clk 0:02:39.3]} 16... dxe6
{[%clk 0:00:59.9]} 17. h6 {[%clk 0:02:39.6]} 17... g6 {[%clk 0:00:45.4]} 18. a3
{[%clk 0:02:38.1]} 18... Bc5 {[%clk 0:00:40.8]} 19. Bf4 {[%clk 0:02:36.5]} 19...
Qd4 {[%clk 0:00:39.2]} 20. e5 {[%clk 0:02:07.2]} 20... Bxa3 {[%clk 0:00:34]} 21.
Bd2 {[%clk 0:02:07.2]} 21... Bxb2+ {[%clk 0:00:31.4]} 22. Kxb2 {[%clk
0:02:06.9]} 22... b4 {[%clk 0:00:31.3]} 23. Qe3 {[%clk 0:01:45]} 23... bxc3+
{[%clk 0:00:32.2]} 24. Ka3 {[%clk 0:01:44.7]} 24... Qb6 {[%clk 0:00:21]} 25. Ra1
{[%clk 0:01:35.6]} 25... Qa5+ {[%clk 0:00:10.5]} 26. Kb3 {[%clk 0:01:34.6]}
26... Rb8+ {[%clk 0:00:10.6]} 0-1

[Event "*** Titled Tuesday Blitz"]
[Site "Chess.com"]
[Date "2020.04.07"]
[Round "6"]
[White "MFguimaraes"]
[Black "talman67"]
[Result "0-1"]
[WhiteElo "2394"]
[BlackElo "2538"]
[TimeControl "180+1"]
[EndTime "14:05:59 PDT"]
[Termination "talman67 won by resignation"]

1. e4 {[%clk 0:03:00.9]} 1... e5 {[%clk 0:02:59.4]} 2. Nf3 {[%clk 0:03:00.8]}
2... Nc6 {[%clk 0:02:59.4]} 3. Bc4 {[%clk 0:03:00.9]} 3... Bc5 {[%clk
0:02:58.9]} 4. b4 {[%clk 0:03:00.4]} 4... Bxb4 {[%clk 0:02:58.9]} 5. c3 {[%clk
0:03:00.4]} 5... Ba5 {[%clk 0:02:58.1]} 6. d4 {[%clk 0:03:00.6]} 6... d6 {[%clk
0:02:55.9]} 7. dxe5 {[%clk 0:02:59.9]} 7... dxe5 {[%clk 0:02:52.9]} 8. Qb3
{[%clk 0:02:54.1]} 8... Qd7 {[%clk 0:02:17.9]} 9. O-O {[%clk 0:02:50.1]} 9...
Bb6 {[%clk 0:01:53.6]} 10. Rd1 {[%clk 0:02:49.5]} 10... Na5 {[%clk 0:01:52.9]}
11. Qc2 {[%clk 0:02:31.7]} 11... Qe7 {[%clk 0:01:47.6]} 12. Bb5+ {[%clk
0:02:07.1]} 12... c6 {[%clk 0:01:42]} 13. Ba3 {[%clk 0:02:07]} 13... Bc5 {[%clk
0:01:41.1]} 14. Bb4 {[%clk 0:01:22.3]} 14... cxb5 {[%clk 0:01:28.3]} 15. Bxa5
{[%clk 0:01:21.4]} 15... Bd7 {[%clk 0:01:24]} 16. Bc7 {[%clk 0:01:15.6]} 16...
f6 {[%clk 0:01:09.5]} 17. Nbd2 {[%clk 0:01:07.2]} 17... Rc8 {[%clk 0:01:06]} 18.
Ba5 {[%clk 0:01:06]} 18... b6 {[%clk 0:01:05.6]} 19. Nb3 {[%clk 0:00:58.8]}
19... bxa5 {[%clk 0:01:05.2]} 20. Nxa5 {[%clk 0:00:59.2]} 20... Nh6 {[%clk
0:01:03.7]} 21. Qb3 {[%clk 0:00:53.4]} 21... a6 {[%clk 0:00:58.1]} 22. Nb7
{[%clk 0:00:51.1]} 22... Be6 {[%clk 0:00:57.7]} 23. Nxc5 {[%clk 0:00:42.8]}
23... Bxb3 {[%clk 0:00:56.3]} 0-1

[Event "*** Titled Tuesday Blitz"]
[Site "Chess.com"]
[Date "2020.04.07"]
[Round "6"]
[White "TwentyHourADay"]
[Black "yawnpawn"]
[Result "1-0"]
[WhiteElo "2323"]
[BlackElo "1757"]
[TimeControl "180+1"]
[EndTime "14:06:02 PDT"]
[Termination "TwentyHourADay won by resignation"]

1. Nf3 {[%clk 0:03:00.9]} 1... c5 {[%clk 0:02:56.2]} 2. b3 {[%clk 0:02:59.9]}
2... Nc6 {[%clk 0:02:53.3]} 3. Bb2 {[%clk 0:03:00.1]} 3... Nf6 {[%clk
0:02:52.8]} 4. g3 {[%clk 0:02:59.4]} 4... g6 {[%clk 0:02:52.4]} 5. c4 {[%clk
0:02:59.1]} 5... Bg7 {[%clk 0:02:52.2]} 6. Bg2 {[%clk 0:02:59.4]} 6... O-O
{[%clk 0:02:51.6]} 7. O-O {[%clk 0:02:59.6]} 7... e6 {[%clk 0:02:51.6]} 8. d4
{[%clk 0:02:58.7]} 8... cxd4 {[%clk 0:02:51]} 9. Nxd4 {[%clk 0:02:59]} 9... Nxd4
{[%clk 0:02:49.9]} 10. Qxd4 {[%clk 0:02:58.8]} 10... Nh5 {[%clk 0:02:46.9]} 11.
Qd2 {[%clk 0:02:58.8]} 11... Nf6 {[%clk 0:02:40.9]} 12. Nc3 {[%clk 0:02:57.3]}
12... Rb8 {[%clk 0:02:30.2]} 13. Qd6 {[%clk 0:02:52.7]} 13... Ra8 {[%clk
0:02:28]} 14. Rad1 {[%clk 0:02:45.3]} 14... Qb6 {[%clk 0:02:25.9]} 15. Qxb6
{[%clk 0:02:33.8]} 15... axb6 {[%clk 0:02:25.5]} 16. Na4 {[%clk 0:02:34]} 16...
b5 {[%clk 0:02:17.1]} 17. cxb5 {[%clk 0:02:33.2]} 17... d5 {[%clk 0:02:18]} 18.
Rc1 {[%clk 0:02:06.6]} 18... Bd7 {[%clk 0:02:17.5]} 19. Nb6 {[%clk 0:02:06.1]}
19... Rad8 {[%clk 0:02:07.3]} 20. a4 {[%clk 0:01:56.3]} 20... Rfe8 {[%clk
0:01:51.2]} 21. Rc7 {[%clk 0:01:54.1]} 21... e5 {[%clk 0:01:49.6]} 22. Rxb7
{[%clk 0:01:45.7]} 22... Be6 {[%clk 0:01:50.5]} 23. Bxe5 {[%clk 0:01:40.8]}
23... d4 {[%clk 0:01:47.9]} 24. Bc6 {[%clk 0:01:35.4]} 24... Rf8 {[%clk
0:01:41]} 25. Rd1 {[%clk 0:01:33.6]} 25... Bxb3 {[%clk 0:01:33.6]} 26. Rxd4
{[%clk 0:01:31]} 26... Rxd4 {[%clk 0:01:28.6]} 27. Bxd4 {[%clk 0:01:30.9]} 27...
Rd8 {[%clk 0:01:24.9]} 28. e3 {[%clk 0:01:21.5]} 28... Ne8 {[%clk 0:01:07.8]}
29. Bxe8 {[%clk 0:01:15.7]} 29... Rxe8 {[%clk 0:01:07.9]} 30. Bxg7 {[%clk
0:01:14.2]} 30... Kxg7 {[%clk 0:01:07.6]} 31. a5 {[%clk 0:01:13]} 31... Rd8
{[%clk 0:01:02.1]} 32. a6 {[%clk 0:01:13.2]} 32... Rd1+ {[%clk 0:00:55.7]} 33.
Kg2 {[%clk 0:01:13.2]} 33... Ra1 {[%clk 0:00:54.6]} 34. a7 {[%clk 0:01:12.4]}
1-0

[Event "*** Titled Tuesday Blitz"]
[Site "Chess.com"]
[Date "2020.04.07"]
[Round "6"]
[White "Gogolev_Artemy"]
[Black "Schachmalanders"]
[Result "0-1"]
[WhiteElo "2451"]
[BlackElo "2330"]
[TimeControl "180+1"]
[EndTime "14:06:07 PDT"]
[Termination "Schachmalanders won by resignation"]

1. d4 {[%clk 0:02:02.6]} 1... d5 {[%clk 0:02:57.5]} 2. c4 {[%clk 0:01:36.9]}
2... e6 {[%clk 0:02:57.4]} 3. g3 {[%clk 0:01:36]} 3... c6 {[%clk 0:02:56]} 4.
Bg2 {[%clk 0:01:36.2]} 4... dxc4 {[%clk 0:02:56.2]} 5. a4 {[%clk 0:01:35.2]}
5... c5 {[%clk 0:02:49.7]} 6. Nf3 {[%clk 0:01:30.9]} 6... Nc6 {[%clk 0:02:48.1]}
7. Na3 {[%clk 0:01:27.6]} 7... cxd4 {[%clk 0:02:45.1]} 8. Nxc4 {[%clk 0:01:28]}
8... Nf6 {[%clk 0:02:41.4]} 9. O-O {[%clk 0:01:27.6]} 9... Bc5 {[%clk
0:02:37.8]} 10. Nfe5 {[%clk 0:01:25.6]} 10... Nxe5 {[%clk 0:02:36.2]} 11. Nxe5
{[%clk 0:01:26.5]} 11... O-O {[%clk 0:02:36]} 12. Bd2 {[%clk 0:01:24.2]} 12...
Rb8 {[%clk 0:02:32.6]} 13. b4 {[%clk 0:01:21.8]} 13... Bd6 {[%clk 0:02:32.7]}
14. Nc4 {[%clk 0:01:21.9]} 14... b6 {[%clk 0:02:29.1]} 15. Bg5 {[%clk
0:01:13.2]} 15... Be7 {[%clk 0:02:27.2]} 16. Bf4 {[%clk 0:01:11.1]} 16... Ba6
{[%clk 0:02:20]} 17. b5 {[%clk 0:01:10.6]} 17... Bb7 {[%clk 0:02:18.8]} 18. Bxb8
{[%clk 0:01:09.9]} 18... Bxg2 {[%clk 0:02:19]} 19. Kxg2 {[%clk 0:01:10.6]} 19...
Qd5+ {[%clk 0:02:11.7]} 20. Kg1 {[%clk 0:01:07.9]} 20... Rxb8 {[%clk 0:02:12.2]}
21. Qd3 {[%clk 0:01:04.5]} 21... e5 {[%clk 0:02:10.4]} 22. Rfd1 {[%clk
0:01:04.1]} 22... Bc5 {[%clk 0:02:07.5]} 23. Rac1 {[%clk 0:00:56.7]} 23... e4
{[%clk 0:02:04.6]} 24. Qb3 {[%clk 0:00:56.7]} 24... h6 {[%clk 0:02:01.7]} 25. a5
{[%clk 0:00:55.3]} 25... Qf5 {[%clk 0:01:59.1]} 26. axb6 {[%clk 0:00:52.6]}
26... axb6 {[%clk 0:01:59.1]} 27. Kg2 {[%clk 0:00:28.8]} 27... Re8 {[%clk
0:01:51.3]} 28. Rf1 {[%clk 0:00:24.2]} 28... h5 {[%clk 0:01:47]} 29. h4 {[%clk
0:00:19.3]} 29... Ng4 {[%clk 0:01:43.8]} 30. Rce1 {[%clk 0:00:16.7]} 30... Re6
{[%clk 0:01:37.5]} 31. f3 {[%clk 0:00:16.6]} 31... Nf6 {[%clk 0:01:29.8]} 32.
Qc2 {[%clk 0:00:16.4]} 32... exf3+ {[%clk 0:01:29.3]} 0-1

[Event "*** Titled Tuesday Blitz"]
[Site "Chess.com"]
[Date "2020.04.07"]
[Round "6"]
[White "sofaceindisguise"]
[Black "lachesisQ"]
[Result "0-1"]
[WhiteElo "2657"]
[BlackElo "3142"]
[TimeControl "180+1"]
[EndTime "14:06:16 PDT"]
[Termination "lachesisQ won by resignation"]

1. c4 {[%clk 0:03:00.4]} 1... e5 {[%clk 0:02:55.6]} 2. g3 {[%clk 0:02:59.4]}
2... h5 {[%clk 0:02:53]} 3. h4 {[%clk 0:02:53]} 3... Nc6 {[%clk 0:02:52.3]} 4.
Nc3 {[%clk 0:02:52.8]} 4... Bc5 {[%clk 0:02:51.7]} 5. Bg2 {[%clk 0:02:51.6]}
5... Nf6 {[%clk 0:02:52.1]} 6. a3 {[%clk 0:02:48.4]} 6... a5 {[%clk 0:02:51.2]}
7. e3 {[%clk 0:02:48.5]} 7... d6 {[%clk 0:02:51.4]} 8. Nge2 {[%clk 0:02:48.5]}
8... Bg4 {[%clk 0:02:51.3]} 9. Qc2 {[%clk 0:02:43.3]} 9... Qd7 {[%clk
0:02:47.6]} 10. d3 {[%clk 0:02:38.8]} 10... O-O {[%clk 0:02:46.2]} 11. Bd2
{[%clk 0:02:37.8]} 11... Bf5 {[%clk 0:02:36]} 12. Rb1 {[%clk 0:02:30.5]} 12...
Rab8 {[%clk 0:02:30.9]} 13. O-O {[%clk 0:02:25.2]} 13... Bh7 {[%clk 0:02:29.2]}
14. Nd5 {[%clk 0:02:22.5]} 14... Nxd5 {[%clk 0:02:21.5]} 15. cxd5 {[%clk
0:02:22.3]} 15... Ne7 {[%clk 0:02:22.2]} 16. Bxa5 {[%clk 0:02:17.9]} 16... Qb5
{[%clk 0:02:22.1]} 17. Qd2 {[%clk 0:01:57.5]} 17... Bxd3 {[%clk 0:02:15.4]} 18.
Nc3 {[%clk 0:01:57.7]} 18... Qa6 {[%clk 0:02:08.9]} 19. Bxc7 {[%clk 0:01:46.3]}
19... Rbc8 {[%clk 0:02:08.5]} 20. b4 {[%clk 0:01:38]} 20... Rxc7 {[%clk
0:01:39.9]} 21. bxc5 {[%clk 0:01:19.5]} 21... Rxc5 {[%clk 0:01:29.5]} 22. Ne4
{[%clk 0:01:11.5]} 22... Rxd5 {[%clk 0:01:21.1]} 23. Qb4 {[%clk 0:01:06.2]}
23... Rb5 {[%clk 0:01:19.2]} 24. Qxd6 {[%clk 0:00:38.2]} 24... Qxd6 {[%clk
0:01:15.9]} 25. Rxb5 {[%clk 0:00:31.3]} 25... Qg6 {[%clk 0:01:09.3]} 0-1

[Event "*** Titled Tuesday Blitz"]
[Site "Chess.com"]
[Date "2020.04.07"]
[Round "6"]
[White "troisi"]
[Black "almaguerjm"]
[Result "0-1"]
[WhiteElo "2034"]
[BlackElo "2328"]
[TimeControl "180+1"]
[EndTime "14:06:16 PDT"]
[Termination "almaguerjm won by resignation"]

1. e4 {[%clk 0:03:00.9]} 1... e5 {[%clk 0:02:59.4]} 2. Nf3 {[%clk 0:03:00.5]}
2... Nc6 {[%clk 0:02:52.8]} 3. d4 {[%clk 0:02:59.4]} 3... exd4 {[%clk
0:02:52.3]} 4. Nxd4 {[%clk 0:02:59.7]} 4... Nf6 {[%clk 0:02:52.8]} 5. Nc3 {[%clk
0:02:58.9]} 5... Bb4 {[%clk 0:02:51.9]} 6. Nxc6 {[%clk 0:02:58.6]} 6... Bxc3+
{[%clk 0:02:49.5]} 7. bxc3 {[%clk 0:02:56.6]} 7... bxc6 {[%clk 0:02:49.9]} 8.
Bd3 {[%clk 0:02:56.8]} 8... O-O {[%clk 0:02:46.3]} 9. Bg5 {[%clk 0:02:52.9]}
9... h6 {[%clk 0:02:43.4]} 10. Bf4 {[%clk 0:02:45.2]} 10... Nxe4 {[%clk
0:02:39.8]} 11. Bxe4 {[%clk 0:02:32.4]} 11... Re8 {[%clk 0:02:29.6]} 12. f3
{[%clk 0:02:32.3]} 12... f5 {[%clk 0:02:21.7]} 13. O-O {[%clk 0:02:29.7]} 13...
fxe4 {[%clk 0:02:22]} 14. fxe4 {[%clk 0:02:30.6]} 14... Rxe4 {[%clk 0:02:22.2]}
15. Qh5 {[%clk 0:02:14.1]} 15... Ba6 {[%clk 0:02:07.3]} 16. Bxh6 {[%clk
0:01:07.5]} 16... Bxf1 {[%clk 0:02:02.4]} 17. Qg6 {[%clk 0:00:34.5]} 17... Qe7
{[%clk 0:01:48.1]} 18. Bxg7 {[%clk 0:00:25.1]} 18... Qxg7 {[%clk 0:01:41.7]} 19.
Qxe4 {[%clk 0:00:25.1]} 19... Bb5 {[%clk 0:01:31.2]} 20. Re1 {[%clk 0:00:24.8]}
20... Rf8 {[%clk 0:01:29.2]} 21. h3 {[%clk 0:00:24.2]} 21... Qg3 {[%clk
0:01:23.2]} 22. c4 {[%clk 0:00:18.7]} 22... Ba4 {[%clk 0:01:15.3]} 23. Re3
{[%clk 0:00:18.5]} 23... Qf2+ {[%clk 0:01:15]} 24. Kh2 {[%clk 0:00:18.4]} 24...
Bxc2 {[%clk 0:01:14.9]} 25. Rg3+ {[%clk 0:00:18.1]} 25... Qxg3+ {[%clk
0:01:14.8]} 26. Kxg3 {[%clk 0:00:18.3]} 26... Bxe4 {[%clk 0:01:15.4]} 0-1

[Event "*** Titled Tuesday Blitz"]
[Site "Chess.com"]
[Date "2020.04.07"]
[Round "6"]
[White "MartinCerveny"]
[Black "Magician4MA"]
[Result "1-0"]
[WhiteElo "2635"]
[BlackElo "2477"]
[TimeControl "180+1"]
[EndTime "14:06:17 PDT"]
[Termination "MartinCerveny won on time"]

1. d4 {[%clk 0:03:00.9]} 1... Nf6 {[%clk 0:02:58.5]} 2. Nf3 {[%clk 0:03:00.8]}
2... g6 {[%clk 0:02:57.7]} 3. Bg5 {[%clk 0:03:00.1]} 3... Bg7 {[%clk 0:02:57.2]}
4. c4 {[%clk 0:03:00.3]} 4... O-O {[%clk 0:02:55.2]} 5. Nc3 {[%clk 0:03:00.3]}
5... d6 {[%clk 0:02:54.1]} 6. e3 {[%clk 0:03:00.4]} 6... Nbd7 {[%clk 0:02:45.9]}
7. Be2 {[%clk 0:03:00.3]} 7... c6 {[%clk 0:02:44.4]} 8. O-O {[%clk 0:02:59.8]}
8... Qc7 {[%clk 0:02:43.5]} 9. a4 {[%clk 0:02:57.6]} 9... a5 {[%clk 0:02:39.4]}
10. Rc1 {[%clk 0:02:55.7]} 10... e5 {[%clk 0:02:36]} 11. Re1 {[%clk 0:02:39.2]}
11... Re8 {[%clk 0:02:23.7]} 12. Qc2 {[%clk 0:02:39]} 12... h6 {[%clk
0:01:54.5]} 13. Bh4 {[%clk 0:02:38.3]} 13... Nf8 {[%clk 0:01:22.9]} 14. Bg3
{[%clk 0:02:20]} 14... Bf5 {[%clk 0:01:09.3]} 15. Qb3 {[%clk 0:02:12]} 15... Nh5
{[%clk 0:00:53.5]} 16. Red1 {[%clk 0:02:11.8]} 16... Nxg3 {[%clk 0:00:51.1]} 17.
hxg3 {[%clk 0:02:11.4]} 17... Re7 {[%clk 0:00:38.2]} 18. c5 {[%clk 0:02:04.6]}
18... dxc5 {[%clk 0:00:23.6]} 19. dxc5 {[%clk 0:02:04.5]} 19... Ne6 {[%clk
0:00:21.5]} 20. Qc4 {[%clk 0:02:04.5]} 20... Rd8 {[%clk 0:00:16.7]} 21. g4
{[%clk 0:01:57.2]} 21... Rxd1+ {[%clk 0:00:13.4]} 22. Rxd1 {[%clk 0:01:57.3]}
22... Bc2 {[%clk 0:00:13.1]} 23. Rd2 {[%clk 0:01:50.2]} 23... e4 {[%clk
0:00:12.9]} 24. Rxc2 {[%clk 0:01:38.3]} 24... exf3 {[%clk 0:00:12.5]} 25. gxf3
{[%clk 0:01:35.4]} 25... Rd7 {[%clk 0:00:10.7]} 26. Ne4 {[%clk 0:01:34.3]} 26...
Qd8 {[%clk 0:00:09.4]} 27. Kg2 {[%clk 0:01:29.5]} 27... Be5 {[%clk 0:00:09.1]}
28. f4 {[%clk 0:01:27.3]} 28... Bc7 {[%clk 0:00:09]} 29. Qc3 {[%clk 0:01:22.9]}
29... Qf8 {[%clk 0:00:04.4]} 30. Nf6+ {[%clk 0:01:22.2]} 1-0

[Event "*** Titled Tuesday Blitz"]
[Site "Chess.com"]
[Date "2020.04.07"]
[Round "6"]
[White "Superfelix"]
[Black "Saloni1299"]
[Result "1-0"]
[WhiteElo "2498"]
[BlackElo "2184"]
[TimeControl "180+1"]
[EndTime "14:06:17 PDT"]
[Termination "Superfelix won on time"]

1. e4 {[%clk 0:03:00.9]} 1... e6 {[%clk 0:03:00]} 2. d4 {[%clk 0:02:58.7]} 2...
d5 {[%clk 0:03:00.3]} 3. Nd2 {[%clk 0:02:59.1]} 3... Nf6 {[%clk 0:02:59.8]} 4.
e5 {[%clk 0:02:58.2]} 4... Nfd7 {[%clk 0:02:59.1]} 5. Bd3 {[%clk 0:02:58.6]}
5... c5 {[%clk 0:02:59.3]} 6. c3 {[%clk 0:02:59.1]} 6... Nc6 {[%clk 0:02:59.6]}
7. Ne2 {[%clk 0:02:59]} 7... cxd4 {[%clk 0:02:59.9]} 8. cxd4 {[%clk 0:02:59.9]}
8... f6 {[%clk 0:03:00.6]} 9. Nf4 {[%clk 0:03:00.2]} 9... Nxd4 {[%clk
0:02:59.8]} 10. Qh5+ {[%clk 0:02:59.8]} 10... Ke7 {[%clk 0:03:00.2]} 11. Ng6+
{[%clk 0:03:00.1]} 11... hxg6 {[%clk 0:02:59.6]} 12. exf6+ {[%clk 0:03:00.5]}
12... Nxf6 {[%clk 0:03:00.2]} 13. Qxh8 {[%clk 0:03:01.3]} 13... Kf7 {[%clk
0:03:00.8]} 14. Qh4 {[%clk 0:03:00.7]} 14... e5 {[%clk 0:02:58.9]} 15. Nf3
{[%clk 0:03:01.1]} 15... Nxf3+ {[%clk 0:02:47.9]} 16. gxf3 {[%clk 0:03:02]}
16... Bf5 {[%clk 0:02:45.5]} 17. Bxf5 {[%clk 0:03:01]} 17... gxf5 {[%clk
0:02:46.1]} 18. Bg5 {[%clk 0:03:01.6]} 18... Qa5+ {[%clk 0:02:44.2]} 19. Kf1
{[%clk 0:02:59.9]} 19... Be7 {[%clk 0:02:38]} 20. Rc1 {[%clk 0:02:50.6]} 20...
Qb5+ {[%clk 0:02:17.9]} 21. Kg2 {[%clk 0:02:46.4]} 21... e4 {[%clk 0:01:51.1]}
22. Rhd1 {[%clk 0:02:36]} 22... Qe2 {[%clk 0:01:14.5]} 23. Qf4 {[%clk
0:02:19.3]} 23... Rh8 {[%clk 0:01:03.4]} 24. Bxf6 {[%clk 0:02:05.9]} 24... gxf6
{[%clk 0:00:59.2]} 25. Qxf5 {[%clk 0:01:57.5]} 25... exf3+ {[%clk 0:00:58.8]}
26. Kg1 {[%clk 0:01:37.2]} 26... Rg8+ {[%clk 0:00:07.1]} 27. Kh1 {[%clk
0:01:36.5]} 27... Qxf2 {[%clk 0:00:07]} 28. Qxd5+ {[%clk 0:01:31.2]} 28... Kg6
{[%clk 0:00:03.6]} 29. Rg1+ {[%clk 0:01:30.1]} 29... Kh6 {[%clk 0:00:02.8]} 30.
Qxg8 {[%clk 0:01:27.7]} 1-0

[Event "*** Titled Tuesday Blitz"]
[Site "Chess.com"]
[Date "2020.04.07"]
[Round "6"]
[White "Gabix_94"]
[Black "Shahinyan_ChessMood"]
[Result "1-0"]
[WhiteElo "2882"]
[BlackElo "2671"]
[TimeControl "180+1"]
[EndTime "14:06:20 PDT"]
[Termination "Gabix_94 won by resignation"]

1. d4 {[%clk 0:03:00.9]} 1... e6 {[%clk 0:02:59.3]} 2. c4 {[%clk 0:03:01.1]}
2... f5 {[%clk 0:02:59.5]} 3. g3 {[%clk 0:03:00.7]} 3... Nf6 {[%clk 0:03:00.4]}
4. Bg2 {[%clk 0:02:58.6]} 4... d5 {[%clk 0:03:01.3]} 5. Nf3 {[%clk 0:02:58.3]}
5... c6 {[%clk 0:03:01.6]} 6. O-O {[%clk 0:02:56]} 6... Bd6 {[%clk 0:03:01.9]}
7. b3 {[%clk 0:02:53.6]} 7... Qe7 {[%clk 0:03:02.4]} 8. Bb2 {[%clk 0:02:52.9]}
8... b6 {[%clk 0:03:02.7]} 9. Ne5 {[%clk 0:02:48.3]} 9... Bb7 {[%clk 0:03:02.3]}
10. Nd2 {[%clk 0:02:43.1]} 10... O-O {[%clk 0:02:59.9]} 11. Ndf3 {[%clk
0:02:40.5]} 11... Ne4 {[%clk 0:02:58.4]} 12. e3 {[%clk 0:02:38.4]} 12... a5
{[%clk 0:02:54.4]} 13. Qc2 {[%clk 0:02:33.8]} 13... a4 {[%clk 0:02:53.3]} 14.
bxa4 {[%clk 0:02:31.6]} 14... c5 {[%clk 0:02:42.7]} 15. cxd5 {[%clk 0:02:23.2]}
15... exd5 {[%clk 0:02:37]} 16. Rab1 {[%clk 0:02:22.5]} 16... c4 {[%clk
0:02:28.1]} 17. Ba1 {[%clk 0:02:05.6]} 17... Ra6 {[%clk 0:02:28.3]} 18. Nh4
{[%clk 0:01:56.2]} 18... g5 {[%clk 0:02:00.4]} 19. Nxf5 {[%clk 0:01:46.8]} 19...
Rxf5 {[%clk 0:01:51.8]} 20. f3 {[%clk 0:01:46.4]} 20... Bxe5 {[%clk 0:00:49.8]}
21. dxe5 {[%clk 0:01:36.1]} 21... Nc6 {[%clk 0:00:40]} 22. fxe4 {[%clk
0:01:34.3]} 22... Rxf1+ {[%clk 0:00:40.9]} 23. Rxf1 {[%clk 0:01:33.2]} 23... Nb4
{[%clk 0:00:33.8]} 24. Qf2 {[%clk 0:01:19.9]} 24... dxe4 {[%clk 0:00:24.7]} 25.
e6 {[%clk 0:01:18.5]} 25... Ra8 {[%clk 0:00:22.8]} 26. Qb2 {[%clk 0:01:14.4]}
1-0

[Event "*** Titled Tuesday Blitz"]
[Site "Chess.com"]
[Date "2020.04.07"]
[Round "6"]
[White "Man-Chuk"]
[Black "Arman_Hakemi"]
[Result "1-0"]
[WhiteElo "2766"]
[BlackElo "2591"]
[TimeControl "180+1"]
[EndTime "14:06:27 PDT"]
[Termination "Man-Chuk won by resignation"]

1. d4 {[%clk 0:02:57.8]} 1... Nf6 {[%clk 0:02:59.6]} 2. c4 {[%clk 0:02:55.8]}
2... e6 {[%clk 0:02:59.6]} 3. Nf3 {[%clk 0:02:56.4]} 3... b6 {[%clk 0:02:59.2]}
4. g3 {[%clk 0:02:56.9]} 4... Ba6 {[%clk 0:02:59.3]} 5. b3 {[%clk 0:02:57]} 5...
b5 {[%clk 0:02:59.1]} 6. cxb5 {[%clk 0:02:56.1]} 6... Bxb5 {[%clk 0:03:00]} 7.
Nc3 {[%clk 0:02:56.8]} 7... Ba6 {[%clk 0:02:54.2]} 8. Bg2 {[%clk 0:02:55.2]}
8... d5 {[%clk 0:02:53.8]} 9. Bf4 {[%clk 0:02:53.5]} 9... Bd6 {[%clk 0:02:39.7]}
10. Ne5 {[%clk 0:02:44.9]} 10... O-O {[%clk 0:02:37.7]} 11. O-O {[%clk
0:02:44.1]} 11... c5 {[%clk 0:02:33.1]} 12. dxc5 {[%clk 0:02:33.1]} 12... Bxc5
{[%clk 0:02:34]} 13. Rc1 {[%clk 0:02:21.1]} 13... Ba3 {[%clk 0:02:23.9]} 14. Rc2
{[%clk 0:02:18.7]} 14... Bb7 {[%clk 0:02:23]} 15. Nb5 {[%clk 0:02:17.4]} 15...
Be7 {[%clk 0:02:13.6]} 16. Nc7 {[%clk 0:02:15.9]} 16... Na6 {[%clk 0:02:12.2]}
17. Nxa8 {[%clk 0:02:08.5]} 17... Qxa8 {[%clk 0:02:13.1]} 18. Nd3 {[%clk
0:02:00.7]} 18... Rd8 {[%clk 0:02:03.4]} 19. Qc1 {[%clk 0:01:59.7]} 19... d4
{[%clk 0:01:43.3]} 20. Bxb7 {[%clk 0:01:50.9]} 20... Qxb7 {[%clk 0:01:44.2]} 21.
Be5 {[%clk 0:01:44.7]} 21... Qd5 {[%clk 0:01:33.2]} 22. Bxf6 {[%clk 0:01:38.3]}
22... Bxf6 {[%clk 0:01:34.1]} 23. Rc8 {[%clk 0:01:37.8]} 23... e5 {[%clk
0:01:27.4]} 24. Rxd8+ {[%clk 0:01:35.5]} 24... Qxd8 {[%clk 0:01:28.3]} 25. Qc6
{[%clk 0:01:27.7]} 25... Nc7 {[%clk 0:01:28.2]} 26. Rc1 {[%clk 0:01:25.7]} 26...
Nd5 {[%clk 0:01:28.2]} 27. Rc5 {[%clk 0:00:56.9]} 27... Ne7 {[%clk 0:01:11.4]}
28. Qc7 {[%clk 0:00:52.1]} 28... Qxc7 {[%clk 0:01:09.2]} 29. Rxc7 {[%clk
0:00:52]} 29... e4 {[%clk 0:01:10.1]} 30. Nf4 {[%clk 0:00:49.3]} 30... g5 {[%clk
0:00:58]} 31. Nh5 {[%clk 0:00:49.2]} 31... Nd5 {[%clk 0:00:54.6]} 32. Rd7 {[%clk
0:00:48.9]} 32... Nb6 {[%clk 0:00:54.7]} 33. Nxf6+ {[%clk 0:00:48.4]} 33... Kg7
{[%clk 0:00:55.3]} 34. Rd6 {[%clk 0:00:47.8]} 34... d3 {[%clk 0:00:55.1]} 35.
exd3 {[%clk 0:00:45.6]} 35... exd3 {[%clk 0:00:56]} 36. Ne4 {[%clk 0:00:44.4]}
1-0